Cogmind - Beta 13 @@@ ROGUE MODE // 2024.03.31 @ 19:03:15 Player: captainketchup Result: Destroyed by AO-XMY(g) with Beamcaster Performance ------------- Evolutions (3) 1500 Regions Visited (8) 1600 Robots Destroyed (79) 395 Value Destroyed (2451) 2451 Prototype IDs (4) 80 Alien Tech Used (0) 0 Bonus (-21) -21 TOTAL SCORE: 6005 Bonus ------- Friendly Fire -21 Cogmind --------- Core Integrity 0/700 Matter 190/300 Energy 149/150 System Corruption 13% Temperature Cool (9) Movement Rolling (95) Ox1 Location -7/Lower Caves Parts ------- > --- POWER (1) -------- Micro Nuclear Core > --- PROPULSION (3) --- Wheel > --- UTILITY (7) ------ Improved Heat Sink Advanced Targeting Computer Armor Integrity Analyzer Kinecellerator Makeshift Hacking Suite > --- WEAPON (2) ------- Gatling Laser > --- INVENTORY (5) ---- Light Nuclear Core Autogun Autogun Autogun Autogun Peak State ------------ > --- POWER ------------ Light Deuterium Engine > --- PROPULSION ------- Light Treads Light Treads Armored Treads > --- UTILITY ---------- Small Storage Unit Signal Interpreter Improved Terrain Scanner Advanced Targeting Computer Improved Medium Armor Plating Improved Medium Armor Plating Shield Generator > --- WEAPON ----------- Particle Cannon Gauss Cannon > --- INVENTORY -------- Improved Ion Engine Experimental Sensor Array Improved Medium Armor Plating Mini Grenade Launcher [Rating: 33] Favorites ----------- Power Light Angular Momentum Engine Engine Light Angular Momentum Engine Power Core Light Nuclear Core Propulsion Light Treads Treads Light Treads Leg Aluminum Leg Wheel Wheel Utility Advanced Targeting Computer Device Improved Terrain Scanner Storage Small Storage Unit Processor Advanced Targeting Computer Hackware Makeshift Hacking Suite Protection Improved Medium Armor Plating Weapon Beamcaster Energy Gun Beamcaster Energy Cannon Particle Cannon Ballistic Gun Autogun Ballistic Cannon Gauss Cannon Launcher Rocket Launcher Build | -11 -10 -10 -9 -8 -7 -7 -7 -7 ------- Run | Yrd Mat Min Mat Mat Fac Was Fac Low Slots Evolved 6 | . . . 2 2 2 . . . Power . | . . . . . . . . . Propulsion 1 | . . . . . 1 . . . Utility 5 | . . . 2 2 1 . . . Weapon . | . . . . . . . . . Parts Attached 78 | 10 7 9 5 18 5 2 20 2 Power 8 | 1 . 1 . 3 . . 3 . Engine 5 | 1 . 1 . 3 . . . . Core 3 | . . . . . . . 3 . Reactor . | . . . . . . . . . Propulsion 15 | 6 . 3 1 2 1 . 2 . Treads 6 | . . 2 1 2 1 . . . Leg 3 | 2 . . . . . . 1 . Wheel 6 | 4 . 1 . . . . 1 . Hover . | . . . . . . . . . Flight . | . . . . . . . . . Utility 29 | 1 3 3 3 9 2 . 6 2 Device 11 | 1 . 2 1 2 1 . 3 1 Storage 2 | . 1 . 1 . . . . . Processor 7 | . 2 1 . 2 . . 2 . Hackware 1 | . . . . . . . . 1 Protection 8 | . . . 1 5 1 . 1 . Artifact . | . . . . . . . . . Weapon 26 | 2 4 2 1 4 2 2 9 . Energy Gun 9 | 2 2 1 . 2 . . 2 . Energy Cannon 2 | . . . . 1 . . 1 . Ballistic Gun 4 | . . . . . . . 4 . Ballistic Cannon 3 | . . . . . 1 1 1 . Launcher 8 | . 2 1 1 1 1 1 1 . Special Weapon . | . . . . . . . . . Impact Weapon . | . . . . . . . . . Slashing Weapon . | . . . . . . . . . Piercing Weapon . | . . . . . . . . . Special Melee Weapon . | . . . . . . . . . Unidentified Prototypes 4 | . . 1 . . . . 3 . Parts Lost 25 | . 1 1 . 11 . 6 6 . Power 4 | . . 1 . 1 . 1 1 . Propulsion 6 | . 1 . . 2 . 2 1 . Utility 8 | . . . . 4 . 1 3 . Weapon 7 | . . . . 4 . 2 1 . Highest Loss Streak 6 | . 1 1 . 5 . 6 4 . To Critical Strikes 1 | . . . . . . 1 . . Average Slot Usage (%) 83 | . 91 93 99 97 100 35 36 51 Engine 8 | . 14 12 11 8 7 2 . . Treads 14 | . . 22 21 17 23 7 . . Wheel 3 | . 21 4 . . . . 2 7 Device 8 | . . 8 16 5 14 4 3 10 Storage 6 | . 6 5 11 9 7 2 . . Processor 14 | . 19 13 11 24 15 6 11 15 Protection 5 | . . . 5 14 15 5 . . Energy Gun 10 | . 27 17 11 6 . . 3 7 Ballistic Gun 1 | . . . . . . . 6 . Launcher 6 | . . 8 10 9 3 3 . . Naked Turns 57 | . . . . . . 52 5 . Heaviest Build 38 | 7 11 19 27 36 38 32 15 15 Greatest Support 60 | 20 20 40 40 40 60 60 10 10 Greatest Overweight (x) 4 | . 1 1 1 1 . 1 4 1 Average Overweight (x) . | . . . . . . . . 1 Largest Inventory Capacity 8 | 5 8 8 8 8 8 8 5 5 Average Capacity 6 | 5 6 6 8 8 8 6 5 5 Most Carried 8 | 2 5 8 7 8 6 8 5 5 Average Carried 4 | . 4 5 3 7 3 5 3 5 Final Capacity 8 | 5 8 5 8 8 8 5 5 5 Final Carried 7 | 2 5 5 7 4 6 5 5 5 Class Distribution -------------------- 50% | Scavenger-Mutant 49% | Mutant Dominant Class ---------------- Mutant | -10/Materials Mutant | -10/Mines Scavenger-Mutant | -9/Materials Scavenger-Mutant | -8/Materials Mutant | -7/Factory Mutant | -7/Waste Mutant | -7/Factory Mutant | -7/Lower Caves Resources | -11 -10 -10 -9 -8 -7 -7 -7 -7 ----------- Run | Yrd Mat Min Mat Mat Fac Was Fac Low Matter Collected 1271 | 300 18 185 50 172 85 . 421 40 Remotely . | . . . . . . . . . Salvage Created 2349 | 59 96 318 424 836 124 . 394 98 Parts 158 | 3 18 23 27 63 4 . 17 3 Haulers Intercepted . | . . . . . . . . . Recyclers Shooed . | . . . . . . . . . Parts Field Recycled . | . . . . . . . . . Retrieved Matter . | . . . . . . . . . Parts Self-Destructed 4 | . . . . . . . . 4 Prevented . | . . . . . . . . . Kills | -11 -10 -10 -9 -8 -7 -7 -7 -7 ------- Run | Yrd Mat Min Mat Mat Fac Was Fac Low Combat Hostiles Destroyed 60 | 1 11 4 7 21 4 . 10 2 Guns 33 | 1 2 4 7 9 . . 8 2 Cannons 3 | . . . . 1 1 . 1 . AOE 22 | . 9 . . 11 2 . . . Classes Destroyed 12 | 2 1 2 2 4 . . 1 . Worker 6 | 1 . 2 . 2 . . 1 . Builder 5 | . . . . 5 . . . . Tunneler 5 | . . 4 . 1 . . . . Recycler 1 | . . . . 1 . . . . Watcher 2 | . . . 2 . . . . . Swarmer 16 | . 9 . . 3 . . 4 . Grunt 24 | 1 2 2 1 10 2 . 4 2 Duelist 3 | . . . 2 . 1 . . . Sentry 11 | . . 2 4 3 1 . 1 . Specialist 2 | . . . . 2 . . . . Hunter 3 | . . . . 3 . . . . Programmer 1 | . . . . . . . 1 . Best Kill Streak 7 | 2 6 3 2 7 3 . 6 2 Combat Bots Only 6 | 1 6 2 2 4 3 . 3 2 Max Kills in Single Turn 4 | 1 3 1 1 4 1 . 1 1 Gunslinging . | . . . . . . . . . Exploded 3 | . 3 . . 3 1 . . . Melee . | . . . . . . . . . Uniques/NPCs Destroyed . | . . . . . . . . . Combat | -11 -10 -10 -9 -8 -7 -7 -7 -7 -------- Run | Yrd Mat Min Mat Mat Fac Was Fac Low Hostile Shots Fired 481 | 2 35 22 24 168 58 6 156 10 Missed 163 | 2 16 5 6 66 25 . 39 4 Damage Taken 4116 | . 236 240 286 1468 206 268 1313 99 Core 1093 | . 49 45 14 271 4 232 407 71 Absorbed by Shields 240 | . . . . 144 75 21 . . Core Remaining (%) 77 | 100 . 62 96 50 . . . . Volleys Fired 213 | 3 16 17 33 67 16 3 52 6 Largest 2 | 2 2 2 1 2 2 2 2 1 Hottest 116 | 90 90 90 75 95 116 69 88 80 Shots Fired 264 | 6 29 27 33 70 19 4 69 7 Gun 208 | 6 24 27 33 53 . . 58 7 Cannon 29 | . . . . 1 16 1 11 . Launcher 27 | . 5 . . 16 3 3 . . Special . | . . . . . . . . . Kinetic 40 | . . . . . 7 1 32 . Thermal 189 | 6 24 27 33 46 9 . 37 7 Explosive 27 | . 5 . . 16 3 3 . . Electromagnetic 8 | . . . . 8 . . . . Robot Hit Streak 19 | 2 10 10 12 19 5 8 16 6 Robot Miss Streak 6 | 1 2 2 2 3 2 . 6 2 Penetration Max 1 | . . . . . . . 1 . Secondary Targets 2 | . 1 1 . . . . . . Max Gunslinging Chain 1 | . 1 1 . . . . . . Shots Hit Robots 192 | 3 20 20 24 53 12 4 49 7 Core Hits 124 | 3 14 15 11 47 9 1 17 7 Critical Kills 1 | . . . . . 1 . . . Critical Parts Destroyed . | . . . . . . . . . Critical Strikes 11 | 1 1 1 3 . 2 1 2 . Burn 7 | 1 1 1 3 . . . 1 . Meltdown 1 | . . . . . 1 . . . Destroy 1 | . . . . . . 1 . . Blast 2 | . . . . . 1 . 1 . Melee Attacks . | . . . . . . . . . Impact . | . . . . . . . . . Slashing . | . . . . . . . . . Piercing . | . . . . . . . . . Sneak Attacks . | . . . . . . . . . Combat Hostiles . | . . . . . . . . . Follow-up Attacks . | . . . . . . . . . Damage Inflicted 6198 | 39 709 310 504 2406 599 446 1018 167 Guns 2832 | 39 214 310 504 858 . . 740 167 Cannons 575 | . . . . 20 267 12 276 . Explosions 2786 | . 494 . . 1526 332 434 . . Melee . | . . . . . . . . . Ramming 5 | . 1 . . 2 . . 2 . Kinetic 635 | . . . . . 163 12 460 . Thermal 2682 | 39 214 310 504 788 104 . 556 167 Explosive 2749 | . 494 . . 1489 332 434 . . Electromagnetic 127 | . . . . 127 . . . . Impact . | . . . . . . . . . Slashing . | . . . . . . . . . Piercing . | . . . . . . . . . Highest Corruption 13 | . . . . . . 10 13 13 Average Corruption 10 | . . . . . . 10 10 13 Corruption Purged . | . . . . . . . . . Corruption Blocked . | . . . . . . . . . Effects 34 | . . . . . . 4 24 6 Message Errors 8 | . . . . . . . 6 2 Matter Fused 6 | . . . . . . . 5 1 Heat Flow Errors 3 | . . . . . . 1 2 . Energy Discharges 5 | . . . . . . 1 3 1 Parts Rejected 3 | . . . . . . 1 2 . Parts Fused 1 | . . . . . . . 1 . Data Loss (minor) 4 | . . . . . . 1 2 1 Data Loss (major) 2 | . . . . . . . 2 . Misfires 1 | . . . . . . . . 1 Weapon Failures 1 | . . . . . . . 1 . Overload Shots . | . . . . . . . . . Overflow Damage 159 | . 77 . . 82 . . . . Projectiles . | . . . . . . . . . Explosions 159 | . 77 . . 82 . . . . Melee . | . . . . . . . . . Knockbacks . | . . . . . . . . . Impact . | . . . . . . . . . Kinetic . | . . . . . . . . . Secondary . | . . . . . . . . . Self-Inflicted Damage 184 | . 64 . . 80 . 39 1 . Shots 6 | . 2 . . 3 . 1 . . Rammed 4 | 1 1 . . 1 . . 1 . Targets Rammed 5 | 1 1 . . 1 . . 2 . Kicked 1 | . . . . . . . 1 . Crushed . | . . . . . . . . . Highest Temperature 371 | 60 150 180 166 371 144 194 295 29 Average Temperature 75 | 28 50 71 56 98 67 109 83 18 Received Heat Transfer 1297 | . 30 102 72 458 68 . 513 54 Effects 3 | . . . . 3 . . . . Energy Bleed 1 | . . . . 1 . . . . Interference 2 | . . . . 2 . . . . Siege Activations . | . . . . . . . . . Robots Corrupted . | . . . . . . . . . Combat Hostiles . | . . . . . . . . . Parts Fried 1 | . . . . 1 . . . . Impact Corruptions . | . . . . . . . . . Robots Melted 2 | . . . . . 1 . 1 . Combat Hostiles 2 | . . . . . 1 . 1 . Parts Melted 8 | . . 2 1 3 . . 2 . Heat Transferred 5819 | 185 632 779 1110 1406 185 . 1147 375 Parts Sabotaged . | . . . . . . . . . Parts Stolen . | . . . . . . . . . Parts Stripped . | . . . . . . . . . Power Chain Reactions 1 | . . . . 1 . . . . Alert | -11 -10 -10 -9 -8 -7 -7 -7 -7 ------- Run | Yrd Mat Min Mat Mat Fac Was Fac Low Peak Influence 370 | 25 358 225 128 370 299 119 230 . Initial 168 | . 16 139 19 18 168 104 63 . Average 117 | 5 213 134 53 144 206 95 95 . Maximum Alert Level 1 | . 1 1 . 1 1 . 1 . Low Security (%) 76 | 100 38 65 100 60 48 100 93 . Level 1 23 | . 61 34 . 39 51 . 6 . Level 2 . | . . . . . . . . . Level 3 . | . . . . . . . . . Level 4 . | . . . . . . . . . Level 5 . | . . . . . . . . . High Security . | . . . . . . . . . Max Security . | . . . . . . . . . Squads Dispatched 13 | . 2 1 2 6 . . 2 . Investigation 7 | . 1 1 1 2 . . 2 . Extermination . | . . . . . . . . . Reinforcement 6 | . 1 . 1 4 . . . . Assault . | . . . . . . . . . Garrison . | . . . . . . . . . Intercept . | . . . . . . . . . Searches Triggered . | . . . . . . . . . Construction Impeded 2 | . . . . 2 . . . . Haulers Reinforced . | . . . . . . . . . Active Scanning Responses . | . . . . . . . . . Cargo Convoy Interrupts . | . . . . . . . . . Stealth | -11 -10 -10 -9 -8 -7 -7 -7 -7 --------- Run | Yrd Mat Min Mat Mat Fac Was Fac Low Distress Signals 6 | . . . 2 3 . . 1 . Communications Jammed . | . . . . . . . . . Distress Signals . | . . . . . . . . . Times Spotted 93 | 1 15 4 16 29 7 6 11 4 Peak Tracking Total 7 | 1 6 2 3 7 3 6 6 4 Tactical Retreats 1 | . . . . 1 . . . . Traps | -11 -10 -10 -9 -8 -7 -7 -7 -7 ------- Run | Yrd Mat Min Mat Mat Fac Was Fac Low Traps Triggered 3 | . 1 . . 1 1 . . . Indirectly . | . . . . . . . . . Trap Hack Attempts . | . . . . . . . . . Triggered . | . . . . . . . . . Disarmed . | . . . . . . . . . Reprogrammed . | . . . . . . . . . Reused . | . . . . . . . . . Traps Extracted . | . . . . . . . . . Installed . | . . . . . . . . . Triggered . | . . . . . . . . . Machines | -11 -10 -10 -9 -8 -7 -7 -7 -7 ---------- Run | Yrd Mat Min Mat Mat Fac Was Fac Low Machines Disabled 6 | . 2 . . 4 . . . . Max in Single Turn 2 | . 2 . . 1 . . . . Machines Repaired . | . . . . . . . . . Machines Dismantled . | . . . . . . . . . Machines Sabotaged . | . . . . . . . . . Overloaded Fab Kills . | . . . . . . . . . Hacking | -11 -10 -10 -9 -8 -7 -7 -7 -7 --------- Run | Yrd Mat Min Mat Mat Fac Was Fac Low Machines Accessed 15 | . 4 1 4 1 1 . 4 . Terminals 14 | . 4 . 4 1 1 . 4 . Fabricators . | . . . . . . . . . Repair Stations . | . . . . . . . . . Recycling Units . | . . . . . . . . . Scanalyzers . | . . . . . . . . . Garrison Access . | . . . . . . . . . Total Hacks 32 | . 9 1 8 4 1 . 9 . Successful 10 | . 2 1 4 1 . . 2 . Failed 22 | . 7 . 4 3 1 . 7 . Catastrophic 8 | . 2 . 2 1 . . 3 . Database Lockouts . | . . . . . . . . . Manual 3 | . 2 . . . 1 . . . Terminals 31 | . 9 . 8 4 1 . 9 . Fabricators . | . . . . . . . . . Repair Stations . | . . . . . . . . . Recycling Units . | . . . . . . . . . Scanalyzers . | . . . . . . . . . Garrison Access . | . . . . . . . . . Terminal Hacks 10 | . 2 1 4 1 . . 2 . Record 1 | . . . . . . . 1 . Open Door 1 | . . 1 . . . . . . Branch Access Points 2 | . 1 . 1 . . . . . Unreport Threat 2 | . . . 1 1 . . . . Hauler Manifests 2 | . 1 . 1 . . . . . Zone Layout 2 | . . . 1 . . . 1 . Fabricator Hacks . | . . . . . . . . . Repair Station Hacks . | . . . . . . . . . Recycling Unit Hacks . | . . . . . . . . . Scanalyzer . | . . . . . . . . . Garrison Access Hacks . | . . . . . . . . . Unauthorized Hacks . | . . . . . . . . . Terminals . | . . . . . . . . . Fabricators . | . . . . . . . . . Repair Stations . | . . . . . . . . . Recycling Units . | . . . . . . . . . Scanalyzers . | . . . . . . . . . Garrison Access . | . . . . . . . . . Data Cores Recovered . | . . . . . . . . . Used . | . . . . . . . . . Hacking Detections 10 | . 3 . 3 1 . . 3 . Full Trace Events 5 | . 1 . 1 1 . . 2 . Feedback Events . | . . . . . . . . . Feedback Blocked . | . . . . . . . . . Robot Schematics Acquired . | . . . . . . . . . Robots Built . | . . . . . . . . . Authchips . | . . . . . . . . . Time . | . . . . . . . . . Total Robot Build Rating . | . . . . . . . . . Part Schematics Acquired . | . . . . . . . . . Parts Built . | . . . . . . . . . Authchips . | . . . . . . . . . Time . | . . . . . . . . . Total Part Build Rating . | . . . . . . . . . Parts Repaired . | . . . . . . . . . Time . | . . . . . . . . . Parts Recycled . | . . . . . . . . . Recycled Matter . | . . . . . . . . . Retrieved Matter . | . . . . . . . . . Retrieved Components . | . . . . . . . . . Parts Scanalyzed . | . . . . . . . . . Part Schematics Acquired . | . . . . . . . . . Parts Damaged . | . . . . . . . . . Bothacking | -11 -10 -10 -9 -8 -7 -7 -7 -7 ------------ Run | Yrd Mat Min Mat Mat Fac Was Fac Low Used RIF Installer . | . . . . . . . . . Robots Hacked . | . . . . . . . . . Non-combat . | . . . . . . . . . Combat . | . . . . . . . . . Robot Hacks Applied . | . . . . . . . . . Relay Couplers Released . | . . . . . . . . . Fabnet Peak Effective % . | . . . . . . . . . Robots Rewired . | . . . . . . . . . Allies Hacked . | . . . . . . . . . Hacks Repelled . | . . . . . . . . . Allies | -11 -10 -10 -9 -8 -7 -7 -7 -7 -------- Run | Yrd Mat Min Mat Mat Fac Was Fac Low Total Allies 1 | . . . . . . . . 1 Largest Group 1 | . . . . . . . . 1 Highest-Rated Group 167 | . . . . . . . . 167 Highest-Rated Ally 167 | . . . . . . . . 167 Total Orders . | . . . . . . . . . Ally Attacks . | . . . . . . . . . Total Damage . | . . . . . . . . . Kills . | . . . . . . . . . Allies Corrupted . | . . . . . . . . . Allies Melted . | . . . . . . . . . Intel | -11 -10 -10 -9 -8 -7 -7 -7 -7 ------- Run | Yrd Mat Min Mat Mat Fac Was Fac Low Robot Analysis Total . | . . . . . . . . . Derelict Logs Recovered 1 | . . . . . . . . 1 Drone Launches . | . . . . . . . . . Drone Recoveries . | . . . . . . . . . Exploration | -11 -10 -10 -9 -8 -7 -7 -7 -7 ------------- Run | Yrd Mat Min Mat Mat Fac Was Fac Low Turns Passed 3952 | 116 288 684 937 664 360 96 655 152 Spaces Moved 2496 | 113 258 412 515 299 193 121 442 143 Core 173 | 22 . . . . . 101 50 . Treads 1350 | . . 323 515 299 193 20 . . Legs 166 | 7 . . . . . . 159 . Wheels 807 | 84 258 89 . . . . 233 143 Hover . | . . . . . . . . . Flight . | . . . . . . . . . Fastest Speed 50 | 50 80 80 165 160 163 50 50 95 Average Speed 131 | 76 87 149 165 162 163 69 110 95 Slowest Speed 250 | 120 95 170 250 240 163 250 250 95 Overloaded Moves . | . . . . . . . . . Propulsion Burnouts . | . . . . . . . . . Robots Hopped . | . . . . . . . . . Cave-ins Triggered . | . . . . . . . . . Exploration Rate (%) 34 | 6 31 70 37 33 7 81 10 31 Regions Visited 8 Branch Regions 2 Pre-discovered Areas . | . . . . . . . . . Known Exits Taken 2 | . 1 . . 1 . . . . Unknown Exits Taken 4 | 1 . 1 1 . . . 1 . Scrap Searched 3 | . . 1 . . . . . 2 Spaces Dug 12 | . 12 . . . . . . . Terrain Destroyed 179 | . 37 . . 96 22 24 . . Melee . | . . . . . . . . . Projectile 2 | . . . . . 2 . . . AOE 177 | . 37 . . 96 20 24 . . Terrain Rammed . | . . . . . . . . . Walls Destroyed . | . . . . . . . . . Machines Disabled . | . . . . . . . . . Actions | -11 -10 -10 -9 -8 -7 -7 -7 -7 --------- Run | Yrd Mat Min Mat Mat Fac Was Fac Low Total 2892 | 133 289 456 567 406 221 128 541 151 Wait 35 | . 1 . 8 9 1 . 16 . Move 2490 | 113 257 411 514 298 193 120 441 143 Hop . | . . . . . . . . . Pick Up 36 | 3 4 8 5 7 4 2 3 . Fast Attach 42 | 9 3 8 1 7 . . 12 2 Attach 29 | 1 . 1 4 10 4 2 7 . Detach 10 | . . . 1 1 2 1 5 . Swap 7 | . 4 . . 1 1 . 1 . Drop 26 | 4 3 11 1 5 . . 2 . Fire 213 | 3 16 17 33 67 16 3 52 6 Melee . | . . . . . . . . . Ram 2 | . 1 . . . . . 1 . Kick 1 | . . . . . . . 1 . Crush 1 | . . . . 1 . . . . Escape Stasis . | . . . . . . . . . Rewire . | . . . . . . . . . Trap . | . . . . . . . . . Miscellaneous . | . . . . . . . . . Route ------- -11/Scrapyard -10/Materials -10/Mines -9/Materials (discovered 2 exits: *Mat / Min) -8/Materials -7/Factory -7/Waste -7/Factory -7/Lower Caves History --------- Turn | Location | Event 2 | -11/Scrapyard | Met Revision 17 87 | -11/Scrapyard | Discovered new exit (range 8) 117 | -11/Scrapyard | Entered Materials 312 | -10/Materials | Build established: Mutant 340 | -10/Materials | Identified exit to Mines 405 | -10/Materials | Entered Mines 500 | -10/Mines | Met a Derelict shopkeep closing up shop 549 | -10/Mines | Joined a pair of Derelicts in attacking an 0b10 outpost 682 | -10/Mines | Found a damaged Exp. Sensor Array with a note attached 689 | -10/Mines | Found Prototype Device 689 | -10/Mines | Identified Exp. Sensor Array 964 | -10/Mines | Received a Rocket Launcher from a helpful Derelict 975 | -10/Mines | Discovered new exit (range 11) 1089 | -10/Mines | Entered Materials 1089 | -9/Materials | Evolved 2 slots: Utility x2 1111 | -9/Materials | Build established: Scavenger-Mutant 1129 | -9/Materials | Identified exit to Mines 1986 | -9/Materials | Discovered new exit (range 16) 2026 | -9/Materials | Entered another Materials area 2026 | -8/Materials | Evolved 2 slots: Utility x2 2673 | -8/Materials | Lost 5 parts (1n2u2w) 2684 | -8/Materials | Discovered new exit (range 4) 2689 | -8/Materials | Identified exit to Factory 2690 | -8/Materials | Entered Factory 2690 | -7/Factory | Evolved 2 slots: Propulsion x1, Utility x1 2935 | -7/Factory | Build established: Mutant 3050 | -7/Factory | Sucked down chute 3050 | -7/Factory | Entered Waste 3065 | -7/Waste | EMP discharged 3065 | -7/Waste | System corruption reached 10% 3068 | -7/Waste | Spotted C-40 Crusher 3069 | -7/Waste | Spotted C-40 Crusher 3082 | -7/Waste | Spotted C-40 Crusher 3082 | -7/Waste | Crushed by Compactor (1 part destroyed, 2 dropped) 3085 | -7/Waste | Crushed by Compactor (1 part destroyed, 1 dropped) 3088 | -7/Waste | Crushed by Compactor (1 part destroyed, 2 dropped) 3091 | -7/Waste | Crushed by Compactor (1 part destroyed, 1 dropped) 3094 | -7/Waste | Crushed by Compactor (1 part destroyed, 1 dropped) 3109 | -7/Waste | Spotted C-40 Crusher 3118 | -7/Waste | Spotted C-40 Crusher 3125 | -7/Waste | Lost 6 parts (1p2n1u2w) 3126 | -7/Waste | Spotted C-40 Crusher 3136 | -7/Waste | Discovered new exit (range 16) 3146 | -7/Waste | Entered Factory 3269 | -7/Factory | Core integrity fell below 50% 3520 | -7/Factory | Core integrity fell below 20% 3537 | -7/Factory | Lost 4 parts (1n2u1w) 3783 | -7/Factory | Discovered new exit (range 8) 3801 | -7/Factory | Entered Lower Caves 3802 | -7/Lower Caves | Encountered a Warlord checkpoint 3901 | -7/Lower Caves | Learned location of 1 exit from Factory 3953 | -7/Lower Caves | Ambushed by wild Derelicts 3953 | -7/Lower Caves | Destroyed by AO-XMY(g) with Beamcaster Last Messages --------------- Searching scrap... Found Kinecellerator. Found 13 Matter. System corrupted: Matter fused (-10). Acquired 13 matter. Acquired Kinecellerator. Acquired derelict log, extracted data. Data stored: Factory exits (x1). Searching scrap... Found Mak. Hacking Suite. Found Mak. Salvage Targeting Computer. Found Lgt. EM Pulse Cannon. Found 27 Matter. Acquired 27 matter. Acquired Mak. Hacking Suite. System corrupted: Energy discharge (-58). Q9ISNRM3EK|6HTXHTE8VGO>RXB AO-XMY(g): "What have we here? Someone sent us a shipment of parts, get out here and collect 'em!" Map ----- +----------------------------------------------------+ | ??????????????????????????????????????#### ##??? | | ?????????????????????????????????????????## ##?? | | ??????????????????????????????????????????## ##? | | ???????????????????????????????????????????# ## | | ??????????????????????????????????????????## | | ?????????????????????????????????????????## | | ????????????????????????????????????????## | | ???????????????????????????????????????## | | ???????????????????????????????????????# ## | | ???????????????????????????????????????# ##? | | ???????????????????????????????????????## ##?? | | ????????????????????????????????????????## ##??? | | ?????????????????????????????????????????# ##???? | | ?????????????????????????????????????????# #????? | | ????????????????????????????????##???????# #????? | | ????????????????????????????????# ??????# #????? | | ????????????????????????????????# ??????# #????? | | ????????????????????????????????# ###???# #???? | | ????????????????????????????????# ##??# #??# | | ?????????????????????????????????# #### #? | | ?????????????????????????#####????# # | | ?????????????????????????? #????## | | ???????????????????????????# ####### | | ?????????????????????????##i# | | ?????????????????# #######g## ## | | ?????????????????# @ #### ##?? | | ?????????????????######## ##?# ##???? | | ????????????????????????## #?# #????? | | ?????????????????????????## ##?## ##????? | | ??????????????????????????####???## ########?????? | | ??????????????????????????????????###????????????? | | ?????????????????????????????????????????????????? | | ?????????????????????????????????????????????????? | | ?????????????????????????????????????????????????? | | ?????????????????????????????????????????????????? | | ?????????????????????????????????????????????????? | | ?????????????????????????????????????????????????? | | ?????????????????????????????????????????????????? | | ?????????????????????????????????????????????????? | | ?????????????????????????????????????????????????? | | ?????????????????????????????????????????????????? | | ?????????????????????????????????????????????????? | | ?????????????????????????????????????????????????? | | ?????????????????????????????????????????????????? | | ?????????????????????????????????????????????????? | | ?????????????????????????????????????????????????? | | | | | | | | | +----------------------------------------------------+ Best States ------------- Heat Dissipation 48 Energy Generation 18 Energy Capacity 265 Matter Stores 300 Matter Capacity 300 Sight Range 16 Robot Scan Range 20 Terrain Scan Range 16 Terrain Scan Density 10 Armor Coverage 675 Evasion (%) 55 Targeting Accuracy 13 Armor Integrity Analysis 30 Recoil Reduction 3 Offensive Hacking 11 Item Schematics ----------------- None Robot Schematics ------------------ None Fabricated ------------ Nothing Alien Tech Used ----------------- None Achievements -------------- System Compromised Challenges ------------ None Game ------ Seed ChipSubdwellerBiocell Manual? 0 Play Time 00:58:07 Cumulative 7.3 hours Start 2024.03.31 @ 14:20:10 End 2024.03.31 @ 19:03:15 Sessions 2 Manual Loads 0 Difficulty Rogue Special Mode None Game No. 3 Rogue 3 Adventurer 0 Explorer 0 Win Type - Total 0 Types 0/0/0/0/0/0/0/0/0 Lore% 14 Gallery% 14 Achievement% 21 Wizard Run 0 Options --------- Layout 1 ASCII 0 Keyboard 0 Movement Arrows Keybinds 0 Fullscreen 0 Font 20/SmallcapsGlow Map View 50x35 Zoom Use 0% Tactical HUD 0 Map Filters NONE Filters NONE Steam 1 RUN: 6f7802b8-e3e4-403e-96d8-dba814e7c114